Cogmind - Beta 13 @@@ ROGUE MODE // 2024.04.14 @ 20:23:39 Player: Pitifulpancake Result: Destroyed by D-53 Grenadier with Mini Grenade Launcher Performance ------------- Evolutions (0) 0 Regions Visited (2) 400 Robots Destroyed (24) 120 Value Destroyed (609) 609 Prototype IDs (4) 80 Alien Tech Used (0) 0 Bonus (0) 0 TOTAL SCORE: 1209 Bonus ------- None Cogmind --------- Core Integrity 0/250 Matter 263/300 Energy 100/100 System Corruption 1% Temperature Cool (0) Movement Treading (160) Location -10/Mines Parts ------- > --- POWER (1) -------- (None) > --- PROPULSION (2) --- Light Treads > --- UTILITY (2) ------ Medium Storage Unit Hacking Suite > --- WEAPON (2) ------- (None) > --- INVENTORY (10) --- Cooling System Experimental Sensor Array Field Recycling Unit (60) Medium Laser Medium Laser Rocket Launcher Peak State ------------ > --- POWER ------------ Light Nuclear Core > --- PROPULSION ------- Light Treads Light Treads > --- UTILITY ---------- Medium Storage Unit Hacking Suite > --- WEAPON ----------- Assault Rifle Rocket Launcher > --- INVENTORY -------- Light Treads Light Treads Cooling System Experimental Sensor Array Field Recycling Unit Medium Laser Medium Laser Medium Laser Beam Cannon Light Cannon [Rating: 14] Favorites ----------- Power Ion Engine Engine Ion Engine Power Core Light Nuclear Core Propulsion Light Treads Treads Light Treads Leg Aluminum Leg Utility Medium Storage Unit Device Field Recycling Unit Storage Medium Storage Unit Hackware Hacking Suite Weapon Assault Rifle Energy Gun Medium Laser Energy Cannon Beam Cannon Ballistic Gun Assault Rifle Ballistic Cannon Light Cannon Launcher Rocket Launcher Build | -11 -10 -10 ------- Run | Yrd Mat Min Slots Evolved . | . . . Power . | . . . Propulsion . | . . . Utility . | . . . Weapon . | . . . Parts Attached 35 | 6 21 8 Power 5 | 1 3 1 Engine 4 | 1 3 . Core 1 | . . 1 Reactor . | . . . Propulsion 8 | 2 4 2 Treads 5 | . 3 2 Leg 3 | 2 1 . Wheel . | . . . Hover . | . . . Flight . | . . . Utility 9 | 1 8 . Device 5 | . 5 . Storage 3 | 1 2 . Processor . | . . . Hackware 1 | . 1 . Protection . | . . . Artifact . | . . . Weapon 13 | 2 6 5 Energy Gun 6 | 2 3 1 Energy Cannon 3 | . 1 2 Ballistic Gun 1 | . 1 . Ballistic Cannon 1 | . . 1 Launcher 2 | . 1 1 Special Weapon . | . . . Impact Weapon . | . . . Slashing Weapon . | . . . Piercing Weapon . | . . . Special Melee Weapon . | . . . Unidentified Prototypes . | . . . Corrupted Parts 1 | . 1 . System Corruption 1 | . 1 . Parts Lost 10 | . 2 8 Power 2 | . 1 1 Propulsion 3 | . . 3 Utility . | . . . Weapon 5 | . 1 4 Highest Loss Streak 8 | . 1 8 To Critical Strikes . | . . . Average Slot Usage (%) 98 | . 98 99 Engine 10 | . 14 2 Core 3 | . . 11 Treads 20 | . 18 27 Leg 7 | . 9 . Device 2 | . 4 . Storage 14 | . 14 14 Hackware 10 | . 8 14 Energy Gun 9 | . 13 . Energy Cannon 2 | . 3 . Ballistic Gun 9 | . 8 13 Ballistic Cannon 2 | . . 9 Launcher 2 | . 1 3 Naked Turns . | . . . Heaviest Build 30 | 13 30 21 Greatest Support 40 | 20 40 40 Greatest Overweight (x) 1 | . 1 . Average Overweight (x) . | . . . Largest Inventory Capacity 15 | 8 15 10 Average Capacity 9 | 7 9 10 Most Carried 10 | 4 10 10 Average Carried 9 | 2 9 9 Final Capacity 10 | 8 10 10 Final Carried 10 | 4 10 6 Class Distribution -------------------- 100% | Mutant Dominant Class ---------------- Mutant | -10/Materials Mutant | -10/Mines Resources | -11 -10 -10 ----------- Run | Yrd Mat Min Matter Collected 710 | 199 322 189 Remotely . | . . . Salvage Created 842 | . 535 307 Parts 51 | . 37 14 Haulers Intercepted . | . . . Recyclers Shooed 1 | . 1 . Parts Field Recycled 21 | . 21 . Retrieved Matter 166 | . 166 . Parts Self-Destructed . | . . . Prevented . | . . . Kills | -11 -10 -10 ------- Run | Yrd Mat Min Combat Hostiles Destroyed 19 | . 13 6 Guns 13 | . 11 2 Cannons 5 | . 1 4 AOE 1 | . 1 . Classes Destroyed 6 | . 4 2 Recycler 3 | . . 3 Operator 2 | . 2 . Watcher 2 | . 2 . Swarmer 5 | . 3 2 Grunt 12 | . 10 2 Assembled 2 | . . 2 Best Kill Streak 3 | . 3 2 Combat Bots Only 3 | . 3 2 Max Kills in Single Turn 1 | . 1 1 Gunslinging . | . . . Exploded 1 | . 1 . Melee . | . . . Uniques/NPCs Destroyed . | . . . Combat | -11 -10 -10 -------- Run | Yrd Mat Min Hostile Shots Fired 114 | . 54 60 Missed 30 | . 14 16 Damage Taken 1602 | . 523 1079 Core 269 | . 108 161 Absorbed by Shields . | . . . Regen/Repaired (Parts) 53 | . 53 . Core Remaining (%) 100 | 100 . . Volleys Fired 78 | . 46 32 Largest 2 | . 2 2 Hottest 110 | . 90 110 Shots Fired 150 | . 87 63 Gun 106 | . 75 31 Cannon 40 | . 8 32 Launcher 4 | . 4 . Special . | . . . Kinetic 72 | . 22 50 Thermal 55 | . 42 13 Explosive 4 | . 4 . Electromagnetic 19 | . 19 . Robot Hit Streak 22 | . 22 8 Robot Miss Streak 4 | . 3 4 Penetration Max . | . . . Secondary Targets 3 | . 3 . Max Gunslinging Chain 1 | . 1 . Shots Hit Robots 85 | . 53 32 Core Hits 43 | . 29 14 Critical Kills 1 | . . 1 Critical Parts Destroyed . | . . . Critical Strikes 1 | . . 1 Destroy 1 | . . 1 Melee Attacks . | . . . Impact . | . . . Slashing . | . . . Piercing . | . . . Sneak Attacks . | . . . Combat Hostiles . | . . . Follow-up Attacks . | . . . Damage Inflicted 1519 | . 962 557 Guns 864 | . 649 215 Cannons 412 | . 70 342 Explosions 236 | . 236 . Melee . | . . . Ramming 7 | . 7 . Kinetic 559 | . 145 414 Thermal 637 | . 494 143 Explosive 105 | . 105 . Electromagnetic 211 | . 211 . Impact . | . . . Slashing . | . . . Piercing . | . . . Highest Corruption 1 | . 1 1 Average Corruption 1 | . 1 1 Corruption Purged . | . . . Corruption Blocked . | . . . Effects 15 | . 10 5 Message Errors 2 | . 1 1 Matter Fused 6 | . 4 2 Heat Flow Errors 1 | . 1 . Energy Discharges 2 | . 2 . Data Loss (minor) 2 | . 1 1 Data Loss (major) 2 | . 1 1 Overload Shots . | . . . Overflow Damage 87 | . 68 19 Projectiles 32 | . 13 19 Explosions 55 | . 55 . Melee . | . . . Knockbacks 4 | . . 4 Impact . | . . . Kinetic 4 | . . 4 Secondary . | . . . Self-Inflicted Damage 34 | . 34 . Shots 1 | . 1 . Rammed 1 | . 1 . Targets Rammed 2 | . 2 . Kicked 1 | . 1 . Crushed . | . . . Highest Temperature 216 | . 111 216 Average Temperature 53 | . 38 102 Received Heat Transfer 315 | . 267 48 Siege Activations . | . . . Robots Corrupted . | . . . Combat Hostiles . | . . . Parts Fried 2 | . 2 . Impact Corruptions . | . . . Robots Melted . | . . . Combat Hostiles . | . . . Parts Melted 3 | . 3 . Heat Transferred 1532 | . 1199 333 Parts Sabotaged . | . . . Parts Stolen . | . . . Parts Stripped . | . . . Power Chain Reactions 1 | . 1 . Alert | -11 -10 -10 ------- Run | Yrd Mat Min Peak Influence 206 | . 206 76 Initial 21 | . . 21 Average 86 | . 102 55 Maximum Alert Level 1 | . 1 . Low Security (%) 97 | 100 96 100 Level 1 2 | . 3 . Level 2 . | . . . Level 3 . | . . . Level 4 . | . . . Level 5 . | . . . High Security . | . . . Max Security . | . . . Squads Dispatched 4 | . 4 . Investigation 2 | . 2 . Extermination . | . . . Reinforcement 2 | . 2 . Assault . | . . . Garrison . | . . . Intercept . | . . . Searches Triggered . | . . . Construction Impeded . | . . . Haulers Reinforced . | . . . Active Scanning Responses . | . . . Cargo Convoy Interrupts . | . . . Stealth | -11 -10 -10 --------- Run | Yrd Mat Min Distress Signals . | . . . Communications Jammed . | . . . Distress Signals . | . . . Times Spotted 33 | . 20 13 Peak Tracking Total 5 | . 5 5 Tactical Retreats 3 | . . 3 Traps | -11 -10 -10 ------- Run | Yrd Mat Min Traps Triggered 2 | . 2 . Indirectly . | . . . Trap Hack Attempts . | . . . Triggered . | . . . Disarmed . | . . . Reprogrammed 2 | . 2 . Reused . | . . . Traps Extracted . | . . . Installed . | . . . Triggered . | . . . Machines | -11 -10 -10 ---------- Run | Yrd Mat Min Machines Disabled 3 | . 3 . Max in Single Turn 3 | . 3 . Machines Repaired . | . . . Machines Dismantled . | . . . Machines Sabotaged . | . . . Overloaded Fab Kills . | . . . Hacking | -11 -10 -10 --------- Run | Yrd Mat Min Machines Accessed 8 | . 8 . Terminals 5 | . 5 . Fabricators . | . . . Repair Stations 1 | . 1 . Recycling Units 2 | . 2 . Scanalyzers . | . . . Garrison Access . | . . . Total Hacks 31 | . 31 . Successful 21 | . 21 . Failed 10 | . 10 . Catastrophic 2 | . 2 . Database Lockouts . | . . . Manual 5 | . 5 . Terminals 21 | . 21 . Fabricators . | . . . Repair Stations 5 | . 5 . Recycling Units 5 | . 5 . Scanalyzers . | . . . Garrison Access . | . . . Terminal Hacks 13 | . 13 . Record 2 | . 2 . Robot Analysis 1 | . 1 . Prototype ID Bank 2 | . 2 . Alert Level 2 | . 2 . Reprogram Traps 1 | . 1 . Dispatch Records 1 | . 1 . Maintenance Status 1 | . 1 . Transport Status 1 | . 1 . Investigation Status 1 | . 1 . Zone Layout 1 | . 1 . Fabricator Hacks . | . . . Repair Station Hacks 3 | . 3 . Scan Component 2 | . 2 . Repair 1 | . 1 . Recycling Unit Hacks 5 | . 5 . Process 1 | . 1 . Report Inventory 2 | . 2 . Retrieve Matter 2 | . 2 . Scanalyzer . | . . . Garrison Access Hacks . | . . . Unauthorized Hacks . | . . . Terminals . | . . . Fabricators . | . . . Repair Stations . | . . . Recycling Units . | . . . Scanalyzers . | . . . Garrison Access . | . . . Data Cores Recovered . | . . . Used . | . . . Hacking Detections 7 | . 7 . Full Trace Events 3 | . 3 . Feedback Events . | . . . Feedback Blocked . | . . . Robot Schematics Acquired . | . . . Robots Built . | . . . Authchips . | . . . Time . | . . . Total Robot Build Rating . | . . . Part Schematics Acquired . | . . . Parts Built . | . . . Authchips . | . . . Time . | . . . Total Part Build Rating . | . . . Parts Repaired 1 | . 1 . Time 26 | . 26 . Parts Recycled . | . . . Recycled Matter 61 | . 61 . Retrieved Matter 61 | . 61 . Retrieved Components . | . . . Parts Scanalyzed . | . . . Part Schematics Acquired . | . . . Parts Damaged . | . . . Bothacking | -11 -10 -10 ------------ Run | Yrd Mat Min Used RIF Installer . | . . . Robots Hacked . | . . . Non-combat . | . . . Combat . | . . . Robot Hacks Applied . | . . . Relay Couplers Released . | . . . Fabnet Peak Effective % . | . . . Robots Rewired . | . . . Allies Hacked . | . . . Hacks Repelled . | . . . Allies | -11 -10 -10 -------- Run | Yrd Mat Min Total Allies . | . . . Largest Group . | . . . Highest-Rated Group . | . . . Highest-Rated Ally . | . . . Total Orders . | . . . Ally Attacks . | . . . Total Damage . | . . . Kills . | . . . Allies Corrupted . | . . . Allies Melted . | . . . Intel | -11 -10 -10 ------- Run | Yrd Mat Min Robot Analysis Total 1 | . 1 . Derelict Logs Recovered 2 | . . 2 Drone Launches . | . . . Drone Recoveries . | . . . Exploration | -11 -10 -10 ------------- Run | Yrd Mat Min Turns Passed 2713 | 72 1873 768 Spaces Moved 1338 | 53 873 412 Core 5 | 5 . . Treads 947 | . 535 412 Legs 386 | 48 338 . Wheels . | . . . Hover . | . . . Flight . | . . . Fastest Speed 50 | 50 120 160 Average Speed 155 | 113 156 160 Slowest Speed 190 | 120 190 160 Overloaded Moves . | . . . Propulsion Burnouts . | . . . Robots Hopped . | . . . Cave-ins Triggered . | . . . Exploration Rate (%) 60 | 3 91 87 Regions Visited 2 Branch Regions 1 Pre-discovered Areas . | . . . Known Exits Taken . | . . . Unknown Exits Taken 2 | 1 1 . Scrap Searched 2 | . . 2 Spaces Dug 18 | . 18 . Terrain Destroyed 38 | . 38 . Melee . | . . . Projectile . | . . . AOE 38 | . 38 . Terrain Rammed . | . . . Walls Destroyed . | . . . Machines Disabled . | . . . Actions | -11 -10 -10 --------- Run | Yrd Mat Min Total 1814 | 62 1295 457 Wait 316 | . 315 1 Move 1336 | 52 872 412 Hop . | . . . Pick Up 26 | 4 20 2 Fast Attach 11 | 6 5 . Attach 8 | . 4 4 Detach 3 | . 3 . Swap 16 | . 12 4 Drop 18 | . 16 2 Fire 78 | . 46 32 Melee . | . . . Ram . | . . . Kick 1 | . 1 . Crush 1 | . 1 . Escape Stasis . | . . . Rewire . | . . . Trap . | . . . Miscellaneous . | . . . Route ------- -11/Scrapyard -10/Materials (discovered 4 exits: [*Mat x3] / [*Min]) -10/Mines (discovered 2 exits: [*Mat x2]) History --------- Turn | Location | Event 7 | -11/Scrapyard | Discovered new exit (range 15) 73 | -11/Scrapyard | Entered Materials 145 | -10/Materials | Discovered new exit (range 6) 305 | -10/Materials | Build established: Mutant 846 | -10/Materials | Discovered new exit (range 6) 1093 | -10/Materials | Discovered new exit (range 8) 1341 | -10/Materials | Discovered new exit (range 3) 1384 | -10/Materials | Repaired Med. Laser 1946 | -10/Materials | Entered Mines 2039 | -10/Mines | Learned 8 Materials zone layouts 2081 | -10/Mines | Found a damaged Exp. Sensor Array with a note attached 2088 | -10/Mines | Found Prototype Device 2163 | -10/Mines | Discovered new exit (range 5) 2436 | -10/Mines | Discovered new exit (range 9) 2634 | -10/Mines | Assembled infested the area 2676 | -10/Mines | Core integrity fell below 50% 2705 | -10/Mines | Core integrity fell below 20% 2714 | -10/Mines | Destroyed by D-53 Grenadier with Mini Grenade Launcher Last Messages --------------- 02682_ Assault Rifle destroyed. 02684_ as-44430 knocked back. 02685_ Lgt. Cannon destroyed. 02691_ Destroyed Asb. Hover Unit. 02691_ as-58221 destroyed. 02692_ Lgt. Treads destroyed. 02694_ as-44430 destroyed. 02697_ C-30 ARC bursts open, deploying its payload. 02697_ D-53 Grenadier unfolds itself. 02703_ as-48338 destroyed. 02704_ Acquired 2 matter. 02704_ Beam Cannon destroyed. 02705_ The unstable cave ceiling collapses. 02705_ Lgt. Treads destroyed. 02705_ Lgt. Nuclear Core destroyed. 02706_ The unstable cave ceiling collapses. 02707_ Lgt. Treads destroyed. 02708_ The unstable cave ceiling collapses. 02712_ Med. Laser destroyed. Map ----- +----------------------------------------------------+ | #?# #????????# ##????????????????? | | ### #?????????## #######??????????? | | ##????????## ## ## ##?????????? | | #######?## ##### ######????? | | ## #?# ##??## ##???? | | #?# ##??# ##??? | | ##?# #### #??? | | ######??# ## #??? | | ########## ### ##??? | | # ###?## ##???? | | ## ##????####????? | | ?## ################% #?????????????? | | ??## #?????????????## #?????????????? | | ???# #???????????### ##?????????????? | | ???## ##???????????# ####??????????????? | | ????#####????????????# dd ##?????????????????? | | ????????????????????### ##????????????????? | | ????????????????????# ##???????????????? | | ???????????????????## ##??????????????? | | ???????????????????# ######## ??????? | | ???????????????????# # ????? | | ???????????????????## ????? | | ########????????????### ########???????? | | #??????????????## #??????????????? | | #??????????????# ##??????????????? | | " < #??????????##??## @ ##???????????????? | | " #???? ????? ##????????????????? | | " #??? ?? ## ##?????????????????? | | #?? ?## #?###??????????????????? | | #??# ??## ####??????????????????????? | | ########??? #?## #??????????????????????????? | | ???????????# ## #???????????????????????????? | | ???????????# #????????????????????????????? | | ???????????# #?????????????????????????????? | | ????????????# ##??????????????? ???????????? | | ????????????# ##?????????????? #??????????? | | ??????####### ###????????????$ #??????????? | | ????### ## ##??????????? #??????????? | | #??## #??????????? #??????????? | | ###* #????????##? #??????????? | | #### ######### ## #??????????? | | # ##??## ##?????????? | | # #????# ! #?????????? | | ## #????# ######%### #?????????? | | ?## ##????## ##????#!#???? #??????????? | | ??#### #??????# ###?????# ###?? #??????????? | | ###### #??????# ##???????# #? ##?????????? | | # #?????## #????????#### #?# ##????????? | | # #?????# #???????????# ### #????????? | | # ######?????# ##??????????# ## #????????? | +----------------------------------------------------+ Best States ------------- Heat Dissipation 47 Energy Generation 14 Energy Capacity 250 Matter Stores 300 Matter Capacity 300 Sight Range 16 Terrain Scan Density 10 Evasion (%) 55 Recoil Reduction 2 Offensive Hacking 10 Item Schematics ----------------- None Robot Schematics ------------------ None Fabricated ------------ Nothing Alien Tech Used ----------------- None Achievements -------------- None Challenges ------------ None Game ------ Seed MicroTeslaRigger Manual? 0 Play Time 00:28:54 Cumulative 6.9 hours Start 2024.04.14 @ 19:56:36 End 2024.04.14 @ 20:23:39 Sessions 1 Manual Loads 0 Difficulty Rogue Special Mode None Game No. 8 Rogue 8 Adventurer 0 Explorer 0 Win Type - Total 0 Types 0/0/0/0/0/0/0/0/0 Lore% 4 Gallery% 13 Achievement% 10 Wizard Run 0 Options --------- Layout 1 ASCII 0 Keyboard 0 Movement Mouse Keybinds 0 Fullscreen 2 Font 32/SmallcapsGlow Map View 50x35 Zoom Use 0% Tactical HUD 1 Map Filters NONE Filters NONE Steam 1 RUN: 68025bfd-66c5-4b81-826b-90bf2d514c53